fUST/lending_fUST_20240912
["ID","MTS","AMOUNT","RATE_DAILY","PERIOD"]
[337795865,1726123756728,-500.0,0.00016438,2]
[337795866,1726123756756,-500.0,0.00016438,2]
[337795867,1726123756778,-500.0,0.00016438,2]
[337795868,1726123756800,-818.89,0.00016438,2]
[337795869,1726123756822,-468.82144447,0.00016438,2]
[337795870,1726123757082,-34.50838445,0.00016438,2]
[337795871,1726123757104,-500.0,0.00016438,2]
[337795872,1726123757127,-500.0,0.00016438,2]
[337795873,1726123757148,-500.0,0.00016438,2]
[337795874,1726123757170,-500.0,0.00016438,2]
[337795875,1726123757193,-1126.63,0.00016438,2]
[337795876,1726123757219,-512.44286753,0.00016438,2]
[337795877,1726123757241,-500.0,0.00016438,2]
[337795878,1726123757264,-500.0,0.00016438,2]
[337795879,1726123757286,-500.0,0.00016438,2]
[337795880,1726123757309,-1306.24,0.00016438,2]
[337795881,1726123757332,-690.26,0.00016438,2]
[337795882,1726123757354,-500.0,0.00016438,2]
[337795883,1726123757376,-500.0,0.00016438,2]
[337795884,1726123757397,-977.81,0.00016438,2]
[337795885,1726123757423,-500.0,0.00016438,2]
[337795886,1726123757446,-500.0,0.00016438,2]
[337795887,1726123757469,-500.0,0.00016438,2]
[337795888,1726123757491,-1576.0,0.00016438,2]
[337795889,1726123757517,-563.69,0.00016438,2]
[337795890,1726123757540,-500.0,0.00016438,2]
[337795891,1726123757565,-1004.8,0.00016438,2]
[337795892,1726123757587,-500.0,0.00016438,2]
[337795893,1726123757610,-500.0,0.00016438,2]
[337795894,1726123757636,-752.1,0.00016438,2]
[337795895,1726123757658,-500.0,0.00016438,2]
[337795896,1726123757682,-500.0,0.00016438,2]
[337795897,1726123757705,-510.23244367,0.00016438,2]
[337795898,1726123757727,-500.0,0.00016438,2]
[337795899,1726123757748,-500.0,0.00016438,2]
[337795900,1726123757771,-500.0,0.00016438,2]
[337795901,1726123757794,-500.0,0.00016438,2]
[337795902,1726123757816,-500.0,0.00016438,2]
[337795903,1726123757837,-500.0,0.00016438,2]
[337795904,1726123757859,-226.77,0.00016438,2]
[337795905,1726123757881,-500.0,0.00016438,2]
[337795906,1726123757903,-555.09600076,0.00016438,2]
[337795907,1726123757925,-500.0,0.00016438,2]
[337795908,1726123757947,-500.0,0.00016438,2]
[337795909,1726123757972,-895.59,0.00016438,2]
[337795910,1726123757993,-501.15800861,0.00016438,2]
[337795911,1726123758014,-500.0,0.00016438,2]
[337795912,1726123758035,-500.0,0.00016438,2]
[337795913,1726123758058,-500.0,0.00016438,2]
[337795914,1726123758078,-500.0,0.00016438,2]
[337795915,1726123758099,-551.25,0.00016438,2]
[337795916,1726123758122,-691.07,0.00016438,2]
[337795917,1726123758144,-527.42535031,0.00016438,2]
[337795918,1726123758165,-500.0,0.00016438,2]
[337795919,1726123758186,-500.0,0.00016438,2]
[337795920,1726123758207,-500.0,0.00016438,2]
[337795921,1726123758229,-500.0,0.00016438,2]
[337795922,1726123758252,-500.0,0.00016438,2]
[337795923,1726123758274,-500.0,0.00016438,2]
[337795924,1726123758296,-500.0,0.00016438,2]
[337795925,1726123758317,-786.8,0.00016438,2]
[337795926,1726123758339,-503.43974858,0.00016438,2]
[337795927,1726123758361,-500.0,0.00016438,2]
[337795928,1726123758382,-500.0,0.00016438,2]
[337795929,1726123758404,-500.0,0.00016438,2]
[337795930,1726123758428,-975.76,0.00016438,2]
[337795931,1726123758451,-500.0,0.00016438,2]
[337795932,1726123758473,-500.0,0.00016438,2]
[337795933,1726123758495,-500.0,0.00016438,2]
[337795934,1726123758518,-500.0,0.00016438,2]
[337795935,1726123758540,-806.09,0.00016438,2]
[337795936,1726123758562,-500.0,0.00016438,2]
[337795937,1726123758582,-729.84,0.00016438,2]
[337795938,1726123758604,-770.21,0.00016438,2]
[337795939,1726123758625,-500.0,0.00016438,2]
[337795940,1726123758646,-500.0,0.00016438,2]
[337795941,1726123758670,-500.0,0.00016438,2]
[337795942,1726123758692,-500.0,0.00016438,2]
[337795943,1726123758717,-8674.94,0.00016438,2]
[337795944,1726123758739,-848.3,0.00016438,2]
[337795945,1726123758766,-500.0,0.00016438,2]
[337795946,1726123758787,-500.0,0.00016438,2]
[337795947,1726123758808,-590.02913619,0.00016438,2]
[337795948,1726123758830,-500.0,0.00016438,2]
[337795949,1726123758852,-500.0,0.00016438,2]
[337795950,1726123758874,-500.0,0.00016438,2]
[337795951,1726123758896,-866.1,0.00016438,2]
[337795952,1726123758918,-689.98,0.00016438,2]
[337795953,1726123758941,-500.0,0.00016438,2]
[337795954,1726123758965,-631.72,0.00016438,2]
[337795955,1726123758987,-501.02926265,0.00016438,2]
[337795956,1726123759009,-500.0,0.00016438,2]
[337795957,1726123759032,-500.0,0.00016438,2]
[337795958,1726123759055,-500.0,0.00016438,2]
[337795959,1726123759078,-582.27,0.00016438,2]
[337795960,1726123759099,-500.0,0.00016438,2]
[337795961,1726123759121,-500.0,0.00016438,2]
[337795962,1726123759144,-560.54,0.00016438,2]
[337795963,1726123759169,-500.0,0.00016438,2]
[337795964,1726123759190,-185.49706415,0.00016438,2]
[337795965,1726123759213,-500.0,0.00016438,2]
[337795966,1726123759235,-500.0,0.00016438,2]
[337795967,1726123759258,-500.0,0.00016438,2]
[337795968,1726123759281,-193.2826424,0.00016438,2]
[337795969,1726123761148,-306.7173576,0.00016438,2]
[337795970,1726123761170,-500.0,0.00016438,2]
[337795971,1726123761194,-500.0,0.00016438,2]
[337795972,1726123761218,-500.0,0.00016438,2]
[337795973,1726123761240,-500.0,0.00016438,2]
[337795974,1726123761262,-500.0,0.00016438,2]
[337795975,1726123761286,-1022.59,0.00016438,2]
[337795976,1726123761312,-500.0,0.00016438,2]
[337795977,1726123761332,-500.0,0.00016438,2]
[337795978,1726123761357,-10023.64,0.00016438,2]
[337795979,1726123761378,-1077.78,0.00016438,2]
[337795980,1726123761398,-500.0,0.00016438,2]
[337795981,1726123761420,-500.0,0.00016438,2]
[337795982,1726123761442,-923.85,0.00016438,2]
[337795983,1726123761466,-500.0,0.00016438,2]
[337795984,1726123761489,-573.18,0.00016438,2]
[337795985,1726123761513,-500.0,0.00016438,2]
[337795986,1726123761538,-500.0,0.00016438,2]
[337795987,1726123761561,-500.0,0.00016438,2]
[337795988,1726123761581,-505.37629822,0.00016438,2]
[337795989,1726123761604,-156.49361723,0.00016438,2]
[337795990,1726123761626,-8715.78,0.00016438,2]
[337795991,1726123761647,-602.78,0.00016438,2]
[337795992,1726123761672,-273.19342005,0.00016438,2]
[337795993,1726123765381,-226.80657995,0.00016438,2]
[337795994,1726123765404,-1098.43,0.00016438,2]
[337795995,1726123765426,-500.0,0.00016438,2]
[337795996,1726123765447,-500.0,0.00016438,2]
[337795997,1726123765470,-345.14022801,0.00016438,2]
[337795998,1726123765493,-500.0,0.00016438,2]
[337795999,1726123765515,-500.0,0.00016438,2]
[337796000,1726123765538,-11078.48,0.00016438,2]
[337796001,1726123765559,-545.11,0.00016438,2]
[337796002,1726123765580,-500.0,0.00016438,2]
[337796003,1726123765603,-764.18,0.00016438,2]
[337796004,1726123765624,-500.0,0.00016438,2]
[337796005,1726123765645,-500.0,0.00016438,2]
[337796006,1726123765671,-922.67,0.00016438,2]
[337796007,1726123765694,-500.0,0.00016438,2]
[337796008,1726123765717,-500.0,0.00016438,2]
[337796009,1726123765738,-500.0,0.00016438,2]
[337796010,1726123765764,-500.0,0.00016438,2]
[337796011,1726123765787,-500.0,0.00016438,2]
[337796012,1726123765809,-500.0,0.00016438,2]
[337796013,1726123765830,-500.0,0.00016438,2]
[337796014,1726123765852,-500.0,0.00016438,2]
[337796015,1726123765873,-500.0,0.00016473,2]
[337796016,1726123765895,-500.0,0.00016473,2]
[337796017,1726123765922,-500.0,0.00016473,2]
[337796018,1726123765944,-500.0,0.00016473,2]
[337796019,1726123765969,-500.0,0.00016473,2]
[337796020,1726123765991,-500.0,0.00016473,2]
[337796021,1726123766014,-150.112233,0.000165,2]
[337796022,1726123766038,-150.112233,0.000165,2]
[337796023,1726123766061,-150.112233,0.000165,2]
[337796024,1726123766094,-20951.3208143,0.0001659,2]
[337796025,1726123766127,-150.112233,0.000166,2]
[337796026,1726123766158,-150.112233,0.000166,2]
[337796027,1726123766185,-150.112233,0.000166,2]
[337796028,1726123766216,-500.0,0.00016692,2]
[337796029,1726123766245,-285.90845234,0.00016692,2]
[337796030,1726123766275,-150.112233,0.000167,2]
[337796031,1726123766304,-150.112233,0.000167,2]
[337796032,1726123766334,-500.0,0.00016701,2]
[337796033,1726123766368,-500.0,0.00016701,2]
[337796034,1726123766397,-83805.2832571,0.00016702,2]
[337796035,1726123766427,-500.0,0.00016711,2]
[337796036,1726123766456,-500.0,0.00016711,2]
[337796037,1726123766485,-500.0,0.00016711,2]
[337796038,1726123766509,-177.96656176,0.00016711,2]
[337796039,1726123766535,-500.0,0.00016712,2]
[337796040,1726123766564,-500.0,0.00016712,2]
[337796041,1726123766595,-500.0,0.00016712,2]
[337796042,1726123766625,-500.0,0.00016712,2]
[337796043,1726123766655,-628.85,0.00016712,2]
[337796044,1726123766683,-500.0,0.00016712,2]
[337796045,1726123766707,-534.8,0.00016712,2]
[337796046,1726123766736,-500.0,0.00016712,2]
[337796047,1726123766764,-500.0,0.00016712,2]
[337796048,1726123766792,-500.0,0.00016712,2]
[337796049,1726123766820,-500.0,0.00016712,2]
[337796050,1726123766847,-500.0,0.00016712,2]
[337796051,1726123766876,-500.0,0.00016712,2]
[337796052,1726123766901,-500.0,0.00016712,2]
[337796053,1726123766926,-683.25,0.00016712,2]
[337796054,1726123766953,-776.14,0.00016712,2]
[337796055,1726123766995,-500.0,0.00016712,2]
[337796056,1726123767025,-500.0,0.00016712,2]
[337796057,1726123767056,-500.0,0.00016712,2]
[337796058,1726123767085,-533.85,0.00016712,2]
[337796059,1726123767114,-500.0,0.00016712,2]
[337796060,1726123767144,-909.14,0.00016712,2]
[337796061,1726123767174,-637.82,0.00016712,2]
[337796062,1726123767203,-500.0,0.00016712,2]
[337796063,1726123767234,-500.0,0.00016712,2]
[337796064,1726123767261,-500.0,0.00016712,2]
[337796065,1726123767287,-200.0,0.00016712,2]
[337796066,1726123767314,-500.0,0.00016712,2]
[337796067,1726123767340,-500.0,0.00016712,2]
[337796068,1726123767367,-500.0,0.00016712,2]
[337796069,1726123767394,-500.0,0.00016712,2]
[337796070,1726123767420,-500.0,0.00016712,2]
[337796071,1726123767446,-1548.21,0.00016712,2]
[337796072,1726123767482,-500.0,0.00016712,2]
[337796073,1726123767509,-960.5,0.00016712,2]
[337796074,1726123767536,-608.64,0.00016712,2]
[337796075,1726123767568,-500.0,0.00016712,2]
[337796076,1726123767617,-500.0,0.00016712,2]
[337796077,1726123767648,-411.29756437,0.00016712,2]
[337796078,1726123767680,-500.0,0.00016712,2]
[337796079,1726123767710,-688.31,0.00016712,2]
[337796080,1726123767742,-500.0,0.00016712,2]
[337796081,1726123767772,-843.58,0.00016712,2]
[337796082,1726123767800,-500.0,0.00016712,2]
[337796083,1726123767830,-500.0,0.00016712,2]
[337796084,1726123767856,-892.05,0.00016712,2]
[337796085,1726123767882,-500.0,0.00016712,2]
[337796086,1726123767910,-500.0,0.00016712,2]
[337796087,1726123767937,-512.51785565,0.00016712,2]
[337796088,1726123767967,-500.0,0.00016712,2]
[337796089,1726123767994,-550.6,0.00016712,2]
[337796090,1726123768023,-500.0,0.00016712,2]
[337796091,1726123768050,-500.0,0.00016712,2]
[337796092,1726123768077,-500.0,0.00016712,2]
[337796093,1726123768103,-500.0,0.00016712,2]
[337796094,1726123768130,-500.0,0.00016712,2]
[337796095,1726123768158,-500.0,0.00016712,2]
[337796096,1726123768186,-500.0,0.00016712,2]
[337796097,1726123768215,-506.79,0.00016712,2]
[337796098,1726123768242,-500.0,0.00016712,2]
[337796099,1726123768269,-500.0,0.00016712,2]
[337796100,1726123768295,-500.0,0.00016712,2]
[337796101,1726123768323,-500.0,0.00016712,2]
[337796102,1726123768349,-500.0,0.00016712,2]
[337796103,1726123768375,-705.14,0.00016712,2]
[337796104,1726123768402,-1018.86,0.00016712,2]
[337796105,1726123768427,-761.85,0.00016712,2]
[337796106,1726123768453,-500.0,0.00016712,2]
[337796107,1726123768477,-844.39,0.00016712,2]
[337796108,1726123768499,-500.0,0.00016712,2]
[337796109,1726123768524,-323.45,0.00016712,2]
[337796110,1726123768548,-1153.8,0.00016712,2]
[337796111,1726123768569,-753.83,0.00016712,2]
[337796112,1726123768594,-1280.53,0.00016712,2]
[337796113,1726123768617,-500.0,0.00016712,2]
[337796114,1726123768640,-563.5,0.00016712,2]
[337796115,1726123768663,-327.00600278,0.00016712,2]
[337796116,1726123768687,-500.0,0.00016712,2]
[337796117,1726123768710,-1201.71,0.00016712,2]
[337796118,1726123768734,-509.77,0.00016712,2]
[337796119,1726123768757,-500.0,0.00016712,2]
[337796120,1726123768779,-659.94,0.00016712,2]
[337796121,1726123768801,-500.0,0.00016712,2]
[337796122,1726123768823,-500.0,0.00016712,2]
[337796123,1726123769179,-554.00345578,0.00016712,2]
[337796124,1726123769202,-500.0,0.00016712,2]
[337796125,1726123769224,-500.0,0.00016712,2]
[337796126,1726123769247,-500.0,0.00016712,2]
[337796127,1726123769268,-500.0,0.00016712,2]
[337796128,1726123769291,-563.24,0.00016712,2]
[337796129,1726123769314,-500.0,0.00016712,2]
[337796130,1726123769339,-1009.51,0.00016712,2]
[337796131,1726123769364,-500.0,0.00016712,2]
[337796132,1726123769389,-500.0,0.00016712,2]
[337796133,1726123769415,-1316.2,0.00016712,2]
[337796134,1726123769439,-1002.22,0.00016712,2]
[337796135,1726123769464,-1498.5,0.00016712,2]
[337796136,1726123769488,-500.0,0.00016712,2]
[337796137,1726123769512,-694.31,0.00016712,2]
[337796138,1726123769535,-1214.16,0.00016712,2]
[337796139,1726123769559,-500.0,0.00016712,2]
[337796140,1726123769581,-500.0,0.00016712,2]
[337796141,1726123769603,-500.0,0.00016712,2]
[337796142,1726123769624,-557.62,0.00016712,2]
[337796143,1726123769647,-540.42,0.00016712,2]
[337796144,1726123769669,-1797.38,0.00016712,2]
[337796145,1726123769693,-500.0,0.00016712,2]
[337796146,1726123769715,-500.0,0.00016712,2]
[337796147,1726123769738,-500.0,0.00016712,2]
[337796148,1726123769760,-773.65,0.00016712,2]
[337796149,1726123769783,-1331.18,0.00016712,2]
[337796150,1726123769805,-1255.34,0.00016712,2]
[337796151,1726123769829,-500.0,0.00016712,2]
[337796152,1726123769851,-531.79,0.00016712,2]
[337796153,1726123769873,-500.0,0.00016712,2]
[337796154,1726123769897,-636.83,0.00016712,2]
[337796155,1726123769920,-500.0,0.00016712,2]
[337796156,1726123769945,-500.0,0.00016712,2]
[337796157,1726123769973,-500.0,0.00016712,2]
[337796158,1726123769998,-500.0,0.00016712,2]
[337796159,1726123770021,-500.0,0.00016712,2]
[337796160,1726123770047,-865.46,0.00016712,2]
[337796161,1726123770071,-725.62,0.00016712,2]
[337796162,1726123770093,-500.0,0.00016712,2]
[337796163,1726123770117,-500.0,0.00016712,2]
[337796164,1726123770139,-605.23,0.00016712,2]
[337796165,1726123770162,-500.0,0.00016712,2]
[337796166,1726123770187,-615.55,0.00016712,2]
[337796167,1726123770210,-507.63238794,0.00016712,2]
[337796168,1726123770234,-988.25,0.00016712,2]
[337796169,1726123770259,-846.88,0.00016712,2]
[337796170,1726123770281,-500.0,0.00016712,2]
[337796171,1726123770305,-500.0,0.00016712,2]
[337796172,1726123770328,-500.0,0.00016712,2]
[337796173,1726123770352,-4123.35,0.00016712,2]
[337796174,1726123770375,-443.78,0.00016712,2]
[337796175,1726123770397,-500.0,0.00016712,2]
[337796176,1726123770419,-500.0,0.00016712,2]
[337796177,1726123770440,-500.0,0.00016712,2]
[337796178,1726123770462,-1200.98,0.00016712,2]
[337796179,1726123770484,-500.0,0.00016712,2]
[337796180,1726123770505,-500.0,0.00016712,2]
[337796181,1726123770527,-500.0,0.00016712,2]
[337796182,1726123770549,-500.0,0.00016712,2]
[337796183,1726123770573,-500.0,0.00016712,2]
[337796184,1726123770596,-299.24887055,0.00016712,2]
[337796185,1726123770619,-500.0,0.00016712,2]
[337796186,1726123770641,-621.77,0.00016712,2]
[337796187,1726123770662,-500.0,0.00016712,2]
[337796188,1726123770683,-500.0,0.00016712,2]
[337796189,1726123770705,-500.0,0.00016712,2]
[337796190,1726123770726,-500.0,0.00016712,2]
[337796191,1726123770747,-500.0,0.00016712,2]
[337796192,1726123770769,-736.49,0.00016712,2]
[337796193,1726123770790,-500.0,0.00016712,2]
[337796194,1726123770811,-500.0,0.00016712,2]
[337796195,1726123770832,-401.544429,0.00016712,2]
[337796196,1726123770853,-500.0,0.00016712,2]
[337796197,1726123770874,-818.89,0.00016712,2]
[337796198,1726123770896,-500.0,0.00016712,2]
[337796199,1726123770918,-1126.63,0.00016712,2]
[337796200,1726123770939,-500.0,0.00016712,2]
[337796201,1726123770959,-500.0,0.00016712,2]
[337796202,1726123770994,-500.0,0.00016712,2]
[337796203,1726123771016,-1306.24,0.00016712,2]
[337796204,1726123771037,-690.26,0.00016712,2]
[337796205,1726123771059,-500.0,0.00016712,2]
[337796206,1726123771081,-977.81,0.00016712,2]
[337796207,1726123771101,-500.0,0.00016712,2]
[337796208,1726123771124,-500.0,0.00016712,2]
[337796209,1726123771146,-500.0,0.00016712,2]
[337796210,1726123771167,-1576.0,0.00016712,2]
[337796211,1726123771190,-563.69,0.00016712,2]
[337796212,1726123771217,-500.0,0.00016712,2]
[337796213,1726123771241,-1004.8,0.00016712,2]
[337796214,1726123771265,-500.0,0.00016712,2]
[337796215,1726123771287,-752.1,0.00016712,2]
[337796216,1726123771309,-500.0,0.00016712,2]
[337796217,1726123771332,-500.0,0.00016712,2]
[337796218,1726123771354,-500.0,0.00016712,2]
[337796219,1726123771377,-500.0,0.00016712,2]
[337796220,1726123771401,-500.0,0.00016712,2]
[337796221,1726123771426,-500.0,0.00016712,2]
[337796222,1726123771447,-500.0,0.00016712,2]
[337796223,1726123771469,-500.0,0.00016712,2]
[337796224,1726123771491,-500.0,0.00016712,2]
[337796225,1726123771515,-895.59,0.00016712,2]
[337796226,1726123771539,-495.42186676,0.00016712,2]
[337796227,1726123771563,-551.25,0.00016712,2]
[337796228,1726123771585,-691.07,0.00016712,2]
[337796229,1726123771607,-500.0,0.00016712,2]
[337796230,1726123771631,-500.0,0.00016712,2]
[337796231,1726123771654,-500.0,0.00016712,2]
[337796232,1726123771677,-500.0,0.00016712,2]
[337796233,1726123771701,-786.8,0.00016712,2]
[337796234,1726123771725,-500.0,0.00016712,2]
[337796235,1726123771749,-975.76,0.00016712,2]
[337796236,1726123771772,-500.0,0.00016712,2]
[337796237,1726123771794,-500.0,0.00016712,2]
[337796238,1726123771819,-500.0,0.00016712,2]
[337796239,1726123771842,-806.09,0.00016712,2]
[337796240,1726123771865,-500.0,0.00016712,2]
[337796241,1726123771889,-729.84,0.00016712,2]
[337796242,1726123771912,-770.21,0.00016712,2]
[337796243,1726123771935,-500.0,0.00016712,2]
[337796244,1726123771957,-500.0,0.00016712,2]
[337796245,1726123771985,-500.0,0.00016712,2]
[337796246,1726123772011,-8674.94,0.00016712,2]
[337796247,1726123772034,-848.3,0.00016712,2]
[337796248,1726123772058,-500.0,0.00016712,2]
[337796249,1726123772081,-500.0,0.00016712,2]
[337796250,1726123772104,-500.0,0.00016712,2]
[337796251,1726123772127,-500.0,0.00016712,2]
[337796252,1726123772150,-500.0,0.00016712,2]
[337796253,1726123772172,-866.1,0.00016712,2]
[337796254,1726123772194,-689.98,0.00016712,2]
[337796255,1726123772217,-631.72,0.00016712,2]
[337796256,1726123772240,-500.0,0.00016712,2]
[337796257,1726123772266,-265.71,0.00016712,2]
[337796258,1726123772291,-582.27,0.00016712,2]
[337796259,1726123772315,-500.0,0.00016712,2]
[337796260,1726123772337,-500.0,0.00016712,2]
[337796261,1726123772360,-560.54,0.00016712,2]
[337796262,1726123772382,-500.0,0.00016712,2]
[337796263,1726123772404,-500.0,0.00016712,2]
[337796264,1726123772426,-500.0,0.00016712,2]
[337796265,1726123772587,-1022.59,0.00016712,2]
[337796266,1726123772617,-10023.64,0.00016712,2]
[337796267,1726123772640,-1077.78,0.00016712,2]
[337796268,1726123772663,-208.77,0.00016712,2]
[337796269,1726123772686,-923.85,0.00016712,2]
[337796270,1726123772711,-500.0,0.00016712,2]
[337796271,1726123772734,-573.18,0.00016712,2]
[337796272,1726123772759,-500.0,0.00016712,2]
[337796273,1726123772782,-8715.78,0.00016712,2]
[337796274,1726123772805,-602.78,0.00016712,2]
[337796275,1726123772828,-500.0,0.00016712,2]
[337796276,1726123772851,-1098.43,0.00016712,2]
[337796277,1726123772873,-500.0,0.00016712,2]
[337796278,1726123772895,-500.0,0.00016712,2]
[337796279,1726123772917,-11078.48,0.00016712,2]
[337796280,1726123772940,-545.11,0.00016712,2]
[337796281,1726123772961,-500.0,0.00016712,2]
[337796282,1726123772986,-764.18,0.00016712,2]
[337796283,1726123773009,-500.0,0.00016712,2]
[337796284,1726123773032,-922.67,0.00016712,2]
[337796285,1726123773056,-500.0,0.00016712,2]
[337796286,1726123773079,-500.0,0.00016712,2]
[337796287,1726123773101,-500.0,0.00016712,2]
[337796288,1726123773123,-500.0,0.00016712,2]
[337796289,1726123773150,-514.60322672,0.00016973,2]
[337796290,1726123773176,-20951.3208143,0.00016976,2]
[337796291,1726123773200,-500.0,0.00016986,2]
[337796292,1726123773226,-500.0,0.00016986,2]
[337796293,1726123773249,-510.91,0.00016986,2]
[337796294,1726123773278,-500.0,0.00016986,2]
[337796295,1726123773304,-628.85,0.00016986,2]
[337796296,1726123773330,-500.0,0.00016986,2]
[337796297,1726123773355,-534.8,0.00016986,2]
[337796298,1726123773380,-418.34126596,0.00016986,2]
[337796299,1726123773404,-500.0,0.00016986,2]
[337796300,1726123773430,-500.0,0.00016986,2]
[337796301,1726123773456,-500.0,0.00016986,2]
[337796302,1726123773480,-180.95542499,0.00016986,2]
[337796303,1726123773505,-500.0,0.00016986,2]
[337796304,1726123773528,-683.25,0.00016986,2]
[337796305,1726123773552,-776.14,0.00016986,2]
[337796306,1726123773576,-500.0,0.00016986,2]
[337796307,1726123773599,-500.0,0.00016986,2]
[337796308,1726123773624,-500.0,0.00016986,2]
[337796309,1726123773651,-533.85,0.00016986,2]
[337796310,1726123773675,-309.84240676,0.00016986,2]
[337796311,1726123773698,-909.14,0.00016986,2]
[337796312,1726123773723,-637.82,0.00016986,2]
[337796313,1726123773747,-500.0,0.00016986,2]
[337796314,1726123773770,-500.0,0.00016986,2]
[337796315,1726123773793,-500.0,0.00016986,2]
[337796316,1726123773816,-200.0,0.00016986,2]
[337796317,1726123773841,-646.56884002,0.00016986,2]
[337796318,1726123773864,-500.0,0.00016986,2]
[337796319,1726123773892,-500.0,0.00016986,2]
[337796320,1726123773919,-500.0,0.00016986,2]
[337796321,1726123773943,-564.66272327,0.00016986,2]
[337796322,1726123773968,-1548.21,0.00016986,2]
[337796323,1726123773991,-500.0,0.00016986,2]
[337796324,1726123774015,-960.5,0.00016986,2]
[337796325,1726123774041,-608.64,0.00016986,2]
[337796326,1726123774065,-500.0,0.00016986,2]
[337796327,1726123774088,-500.0,0.00016986,2]
[337796328,1726123774111,-500.0,0.00016986,2]
[337796329,1726123774137,-688.31,0.00016986,2]
[337796330,1726123774160,-500.0,0.00016986,2]
[337796331,1726123774183,-843.58,0.00016986,2]
[337796332,1726123774208,-500.0,0.00016986,2]
[337796333,1726123774244,-500.0,0.00016986,2]
[337796334,1726123774268,-892.05,0.00016986,2]
[337796335,1726123774290,-500.0,0.00016986,2]
[337796336,1726123774314,-500.0,0.00016986,2]
[337796337,1726123774340,-500.0,0.00016986,2]
[337796338,1726123774364,-550.6,0.00016986,2]
[337796339,1726123774388,-500.0,0.00016986,2]
[337796340,1726123774411,-500.0,0.00016986,2]
[337796341,1726123774435,-374.40583998,0.00016986,2]
[337796342,1726123774458,-500.0,0.00016986,2]
[337796343,1726123774485,-500.0,0.00016986,2]
[337796344,1726123774508,-500.0,0.00016986,2]
[337796345,1726123774532,-500.0,0.00016986,2]
[337796346,1726123774557,-506.79,0.00016986,2]
[337796347,1726123774580,-500.0,0.00016986,2]
[337796348,1726123774602,-500.0,0.00016986,2]
[337796349,1726123774626,-500.0,0.00016986,2]
[337796350,1726123774652,-500.0,0.00016986,2]
[337796351,1726123774674,-500.0,0.00016986,2]
[337796352,1726123774697,-705.14,0.00016986,2]
[337796353,1726123774723,-1018.86,0.00016986,2]
[337796354,1726123774746,-761.85,0.00016986,2]
[337796355,1726123774768,-844.39,0.00016986,2]
[337796356,1726123774791,-1153.8,0.00016986,2]
[337796357,1726123774816,-753.83,0.00016986,2]
[337796358,1726123774840,-1280.53,0.00016986,2]
[337796359,1726123774865,-500.0,0.00016986,2]
[337796360,1726123774887,-563.5,0.00016986,2]
[337796361,1726123774909,-500.0,0.00016986,2]
[337796362,1726123774940,-1201.71,0.00016986,2]
[337796363,1726123774976,-509.77,0.00016986,2]
[337796364,1726123775001,-500.0,0.00016986,2]